bitfinex-derivatives/quotes_BTCF0:USTF0_20251011
["timestamp","ask_amount","ask_price","bid_price","bid_amount"]
[1760168874724,0.39657,110680.0,110670.0,0.38367099]
[1760168875125,0.03577,110670.0,110660.0,0.06482913]
[1760168875319,0.03577,110670.0,110660.0,0.42571012]
[1760168875928,0.03577,110670.0,110660.0,0.44850012]
[1760168876327,0.03577,110670.0,110660.0,0.38377109]
[1760168877737,0.39657,110670.0,110660.0,0.38377109]
[1760168879639,0.39657,110670.0,110660.0,0.36098109]
[1760168879939,0.39657,110670.0,110660.0,0.38377109]
[1760168880138,0.39657,110670.0,110660.0,0.36098109]
[1760168880331,0.38328,110670.0,110660.0,0.39775109]
[1760168880634,0.3608,110690.0,110680.0,0.1042402]
[1760168880930,0.39657,110700.0,110690.0,0.02279]
[1760168881128,0.39657,110700.0,110680.0,0.36088099]
[1760168881129,0.03577,110690.0,110680.0,0.36088099]
[1760168881329,0.02248,110670.0,110660.0,0.52987853]
[1760168881530,0.02248,110670.0,110660.0,0.06482913]
[1760168881531,0.39657,110670.0,110660.0,0.06482913]
[1760168881937,1.2476383,110670.0,110660.0,0.0001001]
[1760168882132,1.15737,110670.0,110660.0,0.0001001]
[1760168882938,0.75737,110670.0,110660.0,0.0228901]
[1760168883232,0.39657,110670.0,110660.0,0.0001001]
[1760168883437,0.79657,110670.0,110660.0,0.0001001]
[1760168884138,1.2476383,110670.0,110660.0,0.0001001]
[1760168884735,1.15737,110670.0,110660.0,0.0001001]
[1760168885334,1.15737,110670.0,110660.0,0.0903766]
[1760168885538,0.03577,110670.0,110660.0,0.1131666]
[1760168885839,0.02248,110670.0,110660.0,0.19187563]
[1760168886032,0.03577,110680.0,110670.0,0.0902683]
[1760168886234,0.02248,110680.0,110670.0,0.55264832]
[1760168886636,0.39657,110690.0,110680.0,0.1130502]
[1760168886839,0.03577,110690.0,110680.0,0.1130502]
[1760168887041,0.02248,110690.0,110680.0,0.4878302]
[1760168887536,0.39657,110700.0,110690.0,0.113042]
[1760168887737,0.39657,110700.0,110690.0,0.38367099]
[1760168887942,0.39657,110700.0,110690.0,0.36088099]
[1760168888744,0.37409,110710.0,110700.0,0.0902438]
[1760168888941,0.39657,110710.0,110700.0,0.1130338]
[1760168889242,0.39657,110710.0,110700.0,0.0902438]
[1760168889643,0.03577,110710.0,110700.0,0.2102438]
[1760168889837,0.02248,110720.0,110710.0,0.1130257]
[1760168890042,0.39657,110720.0,110710.0,0.1]
[1760168890240,0.43577,110720.0,110710.0,0.1]
[1760168890436,0.79657,110720.0,110710.0,0.1]
[1760168892048,0.39657,110720.0,110710.0,0.2130257]
[1760168892443,0.02248,110720.0,110710.0,0.6270057]
[1760168892747,0.37409,110730.0,110720.0,0.1130175]
[1760168892748,0.38328,110730.0,110720.0,0.1130175]
[1760168892942,0.38328,110730.0,110720.0,0.51787849]
[1760168893138,0.3608,110730.0,110720.0,0.51787849]
[1760168893647,0.3608,110730.0,110720.0,0.50389849]
[1760168893648,0.38328,110730.0,110720.0,0.50389849]
[1760168893841,0.3608,110730.0,110720.0,0.51787849]
[1760168894845,0.39648,110730.0,110720.0,0.50389849]
[1760168896441,0.38328,110730.0,110720.0,0.50389849]
[1760168896642,0.3608,110730.0,110720.0,0.51716849]
[1760168897245,0.37409,110740.0,110730.0,0.0902194]
[1760168897442,0.39723,110740.0,110730.0,0.1420094]
[1760168898247,0.38394,110740.0,110730.0,0.1552794]
[1760168899848,0.8873512,110740.0,110730.0,0.03]
[1760168900051,0.9082237,110740.0,110730.0,0.03]
[1760168900245,0.02314,110710.0,110700.0,0.47291089]
[1760168900441,0.374,110730.0,110710.0,0.01327]
[1760168900753,0.3608,110730.0,110720.0,0.48616849]
[1760168901051,0.38394,110730.0,110720.0,0.57289849]
[1760168901244,0.79714,110730.0,110720.0,0.1]
[1760168901448,0.8873594,110730.0,110720.0,0.1]
[1760168901850,0.39714,110730.0,110720.0,0.1]
[1760168902046,0.39714,110730.0,110720.0,0.46088099]
[1760168902653,0.8873594,110730.0,110720.0,0.1]
[1760168904652,1.0973594,110730.0,110720.0,0.1]
[1760168904848,1.3773594,110730.0,110690.0,0.14]
[1760168905056,1.3773594,110730.0,110670.0,0.07799903]
[1760168905057,0.0902601,110680.0,110670.0,0.01327]
[1760168905256,1.1216,110680.0,110670.0,0.01327]
[1760168905753,1.2118601,110680.0,110670.0,0.01327]
[1760168905954,1.1216,110680.0,110670.0,0.01327]
[1760168906656,1.2118601,110680.0,110670.0,0.01327]
[1760168910062,0.0902683,110670.0,110660.0,0.0001001]
[1760168910261,0.9610683,110670.0,110660.0,0.0001001]
[1760168910460,1.3010683,110670.0,110660.0,0.0001001]
[1760168911062,0.0902846,110650.0,110640.0,0.06472903]
[1760168911260,0.8118846,110650.0,110640.0,0.10472903]
[1760168912159,0.81195425,110650.0,110640.0,0.10472903]
[1760168912354,0.72166965,110650.0,110640.0,0.23008183]
[1760168912561,0.81195425,110650.0,110640.0,0.11799903]
[1760168913357,0.72166965,110650.0,110640.0,0.20829183]
[1760168913557,0.72166965,110650.0,110640.0,0.23008183]
[1760168913757,0.72166965,110650.0,110640.0,0.11799903]
[1760168913961,0.81195425,110650.0,110640.0,0.11799903]
[1760168914257,0.72166965,110650.0,110640.0,0.11799903]
[1760168915860,0.72166965,110650.0,110640.0,0.13978903]
[1760168916556,6.965e-05,110650.0,110640.0,1.28703379]
[1760168916754,6.965e-05,110650.0,110640.0,0.92623379]
[1760168916952,0.36086965,110650.0,110640.0,0.52623379]
[1760168917160,6.965e-05,110650.0,110640.0,0.52623379]
[1760168917357,6.965e-05,110650.0,110640.0,0.1653528]
[1760168917661,0.36086965,110650.0,110640.0,0.1653528]
[1760168917861,0.36086965,110650.0,110640.0,0.52623379]
[1760168919463,0.36086965,110650.0,110640.0,0.43594099]
[1760168919855,0.45115425,110650.0,110640.0,0.10467376]
[1760168920058,0.0903009,110630.0,110620.0,0.06467376]
[1760168920364,0.81198248,110630.0,110620.0,0.07847376]
[1760168920564,1.25198248,110630.0,110620.0,0.07847376]
[1760168920761,1.33198248,110630.0,110620.0,0.07847376]
[1760168920965,0.81198248,110630.0,110620.0,0.07847376]
[1760168921264,1.32198248,110630.0,110620.0,0.15847376]
[1760168921460,1.35198248,110630.0,110620.0,0.15847376]
[1760168921666,1.33198248,110630.0,110620.0,0.07847376]
[1760168922361,0.81198248,110630.0,110620.0,0.14847376]
[1760168923367,1.21198248,110630.0,110620.0,0.07847376]
[1760168924261,1.21198248,110630.0,110620.0,0.15847376]
[1760168924466,0.81198248,110630.0,110620.0,0.15847376]
[1760168925362,0.81198248,110630.0,110620.0,0.18031376]
[1760168925568,0.72168158,110630.0,110620.0,0.27062286]
[1760168925963,0.72168158,110630.0,110620.0,0.18031376]
[1760168926162,0.81198248,110630.0,110620.0,0.10031376]
[1760168926370,0.81198248,110630.0,110620.0,0.07847376]
[1760168927062,0.81198248,110630.0,110620.0,0.0138]
[1760168927266,0.81198248,110630.0,110620.0,0.07847376]
[1760168927468,1.21198248,110630.0,110620.0,0.07847376]
[1760168928363,2.15664042,110630.0,110620.0,0.06467376]
[1760168928762,0.0903091,110620.0,110610.0,0.06467376]
[1760168928964,0.0903091,110620.0,110600.0,0.0138]
[1760168928965,0.0903173,110610.0,110600.0,0.0138]
[1760168929158,0.4511173,110610.0,110590.0,0.0138]
[1760168929364,0.4511254,110600.0,110590.0,0.0138]
[1760168929571,0.9911254,110600.0,110590.0,0.0138]
[1760168929868,0.4511254,110600.0,110590.0,0.0138]
[1760168931364,0.9311254,110600.0,110590.0,0.0138]
[1760168931963,0.93124018,110600.0,110590.0,0.0138]
[1760168932366,1.33124018,110600.0,110590.0,0.0138]
[1760168932761,0.85124018,110600.0,110590.0,0.0138]
[1760168932966,1.29124018,110600.0,110590.0,0.0138]
[1760168933169,0.85124018,110600.0,110590.0,0.0138]
[1760168933469,0.45124018,110600.0,110590.0,0.03617]
[1760168934271,0.45124018,110600.0,110590.0,0.0138]
[1760168935366,0.85124018,110600.0,110590.0,0.0138]
[1760168936473,1.33124018,110600.0,110590.0,0.0138]
[1760168936969,0.85124018,110600.0,110590.0,0.0138]
[1760168938170,0.0903336,110590.0,110580.0,0.01357068]
[1760168938370,0.4511336,110590.0,110580.0,0.01357068]
[1760168942676,0.85121106,110590.0,110580.0,0.01357068]
[1760168942874,1.275869,110590.0,110580.0,7.068e-05]
[1760168943067,1.755869,110590.0,110580.0,6.8e-07]
[1760168943376,0.0903499,110570.0,110560.0,0.0135]
[1760168943576,0.0903581,110560.0,110550.0,0.0135]
[1760168943768,0.3608,110560.0,110550.0,0.03587]
[1760168944177,0.3608,110560.0,110550.0,0.0135]
[1760168944376,0.4511581,110560.0,110550.0,0.0135]
[1760168944572,0.3608,110560.0,110550.0,0.0135]
[1760168944767,0.3609123,110560.0,110530.0,0.0135]
[1760168944967,0.3608,110540.0,110530.0,0.0135]
[1760168945173,0.72167769,110540.0,110530.0,0.0135]
[1760168945867,1.66205409,110540.0,110520.0,0.07817376]
[1760168946175,0.3608,110530.0,110520.0,0.0135]
[1760168946779,1.27593919,110530.0,110510.0,0.07817376]
[1760168946979,0.87584874,110520.0,110510.0,0.07817376]
[1760168947276,0.87584874,110520.0,110500.0,0.0135]
[1760168947277,0.090399,110510.0,110500.0,0.06467376]
[1760168947476,0.95131398,110510.0,110500.0,0.06467376]
[1760168947673,0.95131398,110510.0,110490.0,0.01356458]
[1760168947674,0.87597192,110510.0,110490.0,0.07823834]
[1760168947877,1.9512072,110500.0,110490.0,0.07823834]
[1760168948279,1.95129057,110500.0,110490.0,0.07823834]
[1760168948470,1.86088337,110500.0,110490.0,0.07823834]
[1760168948677,2.77594851,110500.0,110490.0,0.01356458]
[1760168949076,2.77594851,110500.0,110490.0,0.06473834]
[1760168949077,3.28594851,110500.0,110490.0,0.06473834]
[1760168949277,3.21594851,110500.0,110490.0,0.06473834]
[1760168949673,1.95129057,110500.0,110490.0,0.07823834]
[1760168949982,2.37594851,110500.0,110490.0,0.07823834]
[1760168950176,1.86088337,110500.0,110490.0,0.07823834]
[1760168950383,1.86088337,110500.0,110490.0,0.59102364]
[1760168950578,1.50008337,110500.0,110490.0,0.95100782]
[1760168950778,1.50008337,110500.0,110490.0,1.39247584]
[1760168950977,8.337e-05,110500.0,110490.0,1.39247584]
[1760168951179,0.3608,110540.0,110530.0,0.03587]
[1760168951373,0.3608,110550.0,110530.0,0.55091054]
[1760168951579,0.3608,110550.0,110540.0,0.03587]
[1760168951780,0.3608,110550.0,110540.0,0.0135]
[1760168952181,1.18554621,110550.0,110530.0,0.0135]
[1760168952380,0.3608,110540.0,110530.0,0.0135]
[1760168952879,0.4511745,110540.0,110530.0,0.0135]
[1760168953284,0.0903826,110530.0,110520.0,0.0135]
[1760168953588,0.45128495,110530.0,110520.0,0.0135]
[1760168954191,0.36090235,110530.0,110520.0,0.0135]
[1760168954486,0.45128495,110530.0,110520.0,0.0135]
[1760168955981,0.36090235,110530.0,110520.0,0.43587]
[1760168956185,0.00010235,110530.0,110520.0,1.31171874]
[1760168956390,0.00010235,110530.0,110520.0,0.8870608]
[1760168956589,0.00010235,110530.0,110520.0,1.31171874]
[1760168956990,0.00010235,110530.0,110520.0,0.91171874]
[1760168957189,0.00010235,110530.0,110520.0,0.55091874]
[1760168957587,0.00010235,110530.0,110520.0,0.63150786]
[1760168960097,0.00010235,110530.0,110520.0,1.31171874]
[1760168960390,0.3608,110560.0,110550.0,0.03628]
[1760168960596,0.3608,110560.0,110550.0,0.55130424]
[1760168960793,0.3608,110570.0,110560.0,0.1034118]
[1760168960993,0.3608,110570.0,110560.0,0.10103548]
[1760168961188,0.3608,110570.0,110560.0,0.03628]
[1760168961388,0.8511499,110570.0,110560.0,0.01306]
[1760168961591,0.8511499,110570.0,110550.0,0.06475548]
[1760168961592,0.0903581,110560.0,110550.0,0.06475548]
[1760168961792,0.4511581,110560.0,110550.0,0.06475548]
[1760168961988,0.0903663,110550.0,110540.0,0.07781548]
[1760168962200,1.9511663,110550.0,110540.0,0.07781548]
[1760168962496,2.3511663,110550.0,110540.0,0.07781548]
[1760168962691,0.0903745,110540.0,110530.0,0.01306]
[1760168962896,0.4511745,110540.0,110530.0,0.01306]
[1760168963096,0.4511745,110540.0,110530.0,0.07784868]
[1760168963495,0.8511745,110540.0,110530.0,0.07784868]
[1760168963699,0.8511745,110540.0,110530.0,0.06478868]
[1760168964198,0.4511745,110540.0,110530.0,0.07784868]
[1760168964794,0.3608,110540.0,110530.0,0.07784868]
[1760168964998,0.8511745,110540.0,110530.0,0.07784868]
[1760168965493,0.4511745,110540.0,110530.0,0.07784868]
[1760168965695,0.3608,110540.0,110530.0,0.07784868]
[1760168965900,0.4511745,110540.0,110530.0,0.07784868]
[1760168966099,0.4511745,110540.0,110530.0,0.01306]
[1760168966295,0.9611745,110540.0,110530.0,0.07787739]
[1760168966490,1.74583904,110540.0,110520.0,0.15882689]
[1760168966695,0.4511826,110530.0,110520.0,0.07788689]
[1760168966995,0.090399,110510.0,110500.0,0.20698121]
[1760168967202,0.811999,110510.0,110500.0,0.0940095]
[1760168967396,1.351999,110510.0,110500.0,0.0940095]
[1760168967591,0.0904072,110500.0,110490.0,0.09407408]
[1760168967795,0.4512072,110500.0,110490.0,0.01312458]
[1760168968194,0.3608,110500.0,110490.0,0.20713849]
[1760168968401,0.3608,110500.0,110490.0,0.63973169]
[1760168968597,0.3608,110510.0,110500.0,0.0904072]
[1760168968792,0.3608,110510.0,110500.0,0.2077365]
[1760168969698,0.3608,110520.0,110510.0,0.090399]
[1760168969896,0.3608,110530.0,110520.0,0.01306]
[1760168970100,0.7216,110530.0,110520.0,0.09411117]
[1760168970297,0.7216,110530.0,110520.0,0.18450197]
[1760168970502,0.3608,110590.0,110580.0,0.0903371]
[1760168970701,0.1698813,110580.0,110570.0,0.87580454]
[1760168970897,0.5306813,110580.0,110560.0,0.0648361]
[1760168971097,0.1582113,110570.0,110560.0,0.1551942]
[1760168971498,0.1582113,110570.0,110560.0,0.0648361]
[1760168971698,0.1582113,110570.0,110560.0,0.0903581]
[1760168972300,0.1582113,110570.0,110560.0,0.1551942]
[1760168972497,1.51167,110560.0,110550.0,0.0648361]
[1760168972804,2.0306813,110560.0,110550.0,0.0648361]
[1760168973605,2.0190113,110560.0,110550.0,0.1552024]
[1760168974798,2.4306813,110560.0,110550.0,0.0648361]
[1760168974997,2.0698813,110560.0,110550.0,0.0648361]
[1760168975403,0.01167,110550.0,110540.0,0.155209]
[1760168975700,1.8608,110560.0,110550.0,0.0903663]
[1760168975900,1.8608,110560.0,110540.0,0.59294935]
[1760168976106,0.5190113,110550.0,110540.0,0.06486081]
[1760168976299,0.5190113,110550.0,110540.0,0.15523531]
[1760168976494,0.5306813,110550.0,110540.0,0.15523531]
[1760168977306,0.5306813,110550.0,110540.0,0.06486081]
[1760168977709,1.0210529,110550.0,110540.0,0.06486644]
[1760168977903,0.9306813,110550.0,110540.0,0.06486644]
[1760168978409,0.01036,110530.0,110510.0,0.04611106]
[1760168978604,0.51504874,110520.0,110510.0,0.04611106]
[1760168978799,1.7319908,110520.0,110510.0,0.04611106]
[1760168978999,0.8119908,110520.0,110490.0,0.12660107]
[1760168979200,0.3608,110510.0,110500.0,0.01306]
[1760168981300,0.0904072,110500.0,110490.0,6.458e-05]
[1760168981507,0.4512072,110500.0,110490.0,6.458e-05]
[1760168981903,0.4512072,110500.0,110490.0,0.01399458]
[1760168982108,0.3608,110500.0,110490.0,0.01399458]
[1760168983302,0.4512072,110500.0,110490.0,0.01399458]
[1760168984910,1.27586514,110500.0,110490.0,6.458e-05]
[1760168985108,1.81586514,110500.0,110490.0,6.458e-05]
[1760168985311,0.8512072,110500.0,110490.0,6.458e-05]
[1760168987514,1.3312072,110500.0,110490.0,6.458e-05]
[1760168987809,1.3312072,110500.0,110490.0,4.58e-06]
[1760168987810,1.75586514,110500.0,110490.0,4.58e-06]
[1760168988215,1.35586514,110500.0,110490.0,4.58e-06]
[1760168988719,1.75586514,110500.0,110490.0,4.58e-06]
[1760168988918,0.0904317,110470.0,110460.0,0.03]
[1760168989114,0.45130746,110470.0,110460.0,0.04311]
[1760168990418,0.36087576,110470.0,110460.0,0.04311]
[1760168990621,0.36087576,110470.0,110460.0,0.06567]
[1760168990917,7.576e-05,110470.0,110460.0,0.46567]
[1760168991118,7.576e-05,110470.0,110460.0,0.5561099]
[1760168991309,0.36087576,110470.0,110460.0,0.5561099]
[1760168991715,0.36087576,110470.0,110460.0,0.1335499]
[1760168991915,0.36087576,110470.0,110460.0,0.04311]
[1760168992520,0.36087576,110470.0,110460.0,0.06567]
[1760168992720,0.36087576,110470.0,110460.0,0.1561099]
[1760168992921,0.36087576,110470.0,110460.0,0.06567]
[1760168993122,0.36087576,110470.0,110460.0,0.04311]
[1760168993517,0.45130746,110470.0,110460.0,0.04311]
[1760168993917,0.36087576,110470.0,110460.0,0.04311]
[1760168994419,0.36087576,110470.0,110460.0,0.1335499]
[1760168994823,0.45130746,110470.0,110460.0,0.04311]
[1760168995017,0.45130746,110470.0,110460.0,0.03]
[1760168995513,0.85130746,110470.0,110460.0,0.03]
[1760168996118,1.20130746,110470.0,110460.0,0.03]
[1760168996319,0.85130746,110470.0,110460.0,0.03]
[1760168996721,0.36087576,110470.0,110460.0,0.06567]
[1760168996919,0.45130746,110470.0,110460.0,0.04311]
[1760169000226,1.31130746,110470.0,110460.0,0.03]
[1760169001018,0.82087576,110470.0,110460.0,0.06567]
[1760169001222,0.47130746,110470.0,110460.0,0.04311]
[1760169001425,0.93130746,110470.0,110460.0,0.04311]
[1760169002031,0.45130746,110470.0,110460.0,0.04311]
[1760169002527,0.45130746,110470.0,110460.0,0.03]
[1760169002924,0.45130746,110470.0,110460.0,0.06567]
[1760169003127,0.0904727,110420.0,110410.0,0.37402254]
[1760169003325,7.576e-05,110420.0,110410.0,0.39658254]
[1760169003920,7.576e-05,110420.0,110410.0,0.88706344]
[1760169004527,7.576e-05,110420.0,110410.0,1.2496191]
[1760169005128,0.09044,110460.0,110450.0,0.03567]
[1760169005424,0.91124,110460.0,110450.0,0.01311]
[1760169005631,0.45124,110460.0,110450.0,0.01311]
[1760169005831,0.99124,110460.0,110450.0,0.01311]
[1760169006030,0.4513188,110460.0,110450.0,0.01311]
[1760169006928,0.9913188,110460.0,110450.0,0.01311]
[1760169007128,0.9113188,110460.0,110450.0,0.01311]
[1760169007325,0.4513188,110460.0,110450.0,0.01311]
[1760169008737,0.3608788,110460.0,110450.0,0.03567]
[1760169009041,7.88e-05,110460.0,110450.0,0.39647]
[1760169009932,7.88e-05,110460.0,110450.0,0.79647]
[1760169010633,7.88e-05,110460.0,110450.0,0.01311]
[1760169010836,0.4513187,110460.0,110450.0,0.01311]
[1760169011031,0.0905187,110460.0,110450.0,0.01311]
[1760169011238,0.47597904,110460.0,110450.0,0.01311]
[1760169011438,0.4513187,110460.0,110450.0,0.01311]
[1760169011734,0.47597259,110460.0,110450.0,0.01311]
[1760169012135,0.4513187,110460.0,110450.0,0.03567]
[1760169012338,0.47599791,110460.0,110450.0,0.01311]
[1760169013635,0.47599791,110460.0,110450.0,0.03567]
[1760169013933,0.47599791,110460.0,110450.0,0.1261181]
[1760169013934,0.38555801,110460.0,110450.0,0.1261181]
[1760169014239,0.02475801,110460.0,110450.0,0.8869181]
[1760169015434,0.02457602,110460.0,110450.0,0.8869181]
[1760169016136,7.88e-05,110460.0,110450.0,0.8869181]
[1760169016337,0.4513187,110460.0,110450.0,0.01311]
[1760169016537,0.47575445,110460.0,110450.0,0.01311]
[1760169016732,0.38531455,110460.0,110450.0,0.01311]
[1760169017134,0.37651455,110460.0,110450.0,0.0362]
[1760169018638,0.37651455,110460.0,110450.0,0.01311]
[1760169020739,0.46695445,110460.0,110450.0,0.01311]
[1760169021746,0.37651455,110460.0,110450.0,0.01311]
[1760169021940,0.37651455,110460.0,110450.0,0.1266481]
[1760169021941,0.02443575,110460.0,110450.0,0.1266481]
[1760169022241,0.02443575,110460.0,110450.0,0.8874481]
[1760169022442,0.39228906,110490.0,110480.0,0.0131]
[1760169022641,0.88521653,110490.0,110470.0,0.0131]
[1760169022840,0.4512273,110480.0,110470.0,0.0131]
[1760169023046,0.98564383,110480.0,110470.0,0.0131]
[1760169023345,1.38564383,110480.0,110470.0,0.0131]
[1760169025143,0.0904317,110470.0,110460.0,0.0131]
[1760169025344,0.47564823,110470.0,110460.0,0.0131]
[1760169027147,0.38521653,110470.0,110460.0,0.0131]
[1760169027445,0.47464823,110470.0,110460.0,0.0131]
[1760169027748,0.47464823,110470.0,110460.0,0.03619]
[1760169027941,0.02441653,110470.0,110460.0,0.8874299]
[1760169029150,0.02441653,110470.0,110460.0,0.5266299]
[1760169030241,0.02441653,110470.0,110460.0,0.1266299]
[1760169031352,0.02441653,110470.0,110460.0,0.1035399]
[1760169031543,0.47564823,110470.0,110460.0,0.0131]
[1760169031949,0.38521653,110470.0,110460.0,0.0131]
[1760169032348,0.47364823,110470.0,110460.0,0.0141]
[1760169033452,0.78321653,110470.0,110460.0,0.0141]
[1760169033652,0.78321653,110470.0,110460.0,0.0131]
[1760169034255,0.78321653,110470.0,110460.0,0.03619]
[1760169034256,0.38321653,110470.0,110460.0,0.03619]
[1760169034951,0.47364823,110470.0,110460.0,0.0131]
[1760169036456,0.38321653,110470.0,110460.0,0.03619]
[1760169036859,0.38321653,110470.0,110460.0,0.0131]
[1760169037054,0.47364823,110470.0,110460.0,0.0131]
[1760169038656,0.4512317,110470.0,110460.0,0.0131]
[1760169039059,0.3908,110470.0,110460.0,0.03619]
[1760169039359,0.8308,110470.0,110460.0,0.03619]
[1760169039559,0.8308,110470.0,110460.0,0.0131]
[1760169039956,0.3608,110470.0,110460.0,0.0131]
[1760169040150,0.4512317,110470.0,110460.0,0.0131]
[1760169041651,0.3608,110470.0,110460.0,0.0131]
[1760169042158,0.3608,110470.0,110460.0,0.10127161]
[1760169042557,0.4512317,110470.0,110460.0,0.0131]
[1760169043656,0.4512317,110470.0,110460.0,0.01377]
[1760169043857,0.8512317,110470.0,110450.0,0.07819161]
[1760169044057,0.4512399,110460.0,110450.0,0.01311]
[1760169044265,0.9812399,110460.0,110450.0,0.01311]
[1760169044465,0.0904481,110450.0,110440.0,0.0131]
[1760169044658,1.32380376,110450.0,110440.0,0.0131]
[1760169045054,0.0904563,110440.0,110430.0,0.06508161]
[1760169045256,0.0904563,110440.0,110390.0,0.47434834]
[1760169045257,0.0904891,110400.0,110390.0,0.05706834]
[1760169045459,1.32384476,110400.0,110390.0,0.01352]
[1760169045663,1.72384476,110400.0,110390.0,0.01352]
[1760169045965,1.72284476,110400.0,110390.0,0.01352]
[1760169046362,0.0904973,110390.0,110380.0,0.01352]
[1760169046559,0.93040289,110390.0,110380.0,0.01352]
[1760169046759,1.29295855,110390.0,110380.0,0.01352]
[1760169046960,1.69295855,110390.0,110380.0,0.01352]
[1760169047259,1.69285296,110390.0,110380.0,0.01352]
[1760169047658,1.29285296,110390.0,110380.0,0.01452]
[1760169048060,1.29292656,110390.0,110380.0,0.01452]
[1760169048261,1.35393763,110390.0,110380.0,0.01452]
[1760169048557,1.71649329,110390.0,110380.0,0.01452]
[1760169048761,1.35393763,110390.0,110380.0,0.01452]
[1760169048957,1.71649329,110390.0,110380.0,0.01452]
[1760169049665,2.2075407,110390.0,110380.0,0.01452]
[1760169050060,1.38071428,110390.0,110380.0,0.01452]
[1760169050466,0.93040289,110390.0,110380.0,0.01452]
[1760169050661,1.38078592,110390.0,110380.0,0.01452]
[1760169050965,1.35722931,110390.0,110380.0,0.01452]
[1760169051165,1.35722931,110390.0,110380.0,0.01352]
[1760169051755,0.93040289,110390.0,110380.0,0.01352]
[1760169051956,0.84090559,110390.0,110380.0,0.5040255]
[1760169052160,0.00010559,110390.0,110380.0,0.5040255]
[1760169052360,0.36090559,110390.0,110380.0,0.41352]
[1760169052760,0.87822931,110390.0,110380.0,0.01352]
[1760169053171,0.36090559,110390.0,110380.0,0.5040255]
[1760169053463,0.00010559,110390.0,110380.0,0.5040255]
[1760169053866,0.3608,110420.0,110410.0,0.01352]
[1760169054061,1.34160135,110420.0,110410.0,0.01352]
[1760169054257,1.33809912,110420.0,110410.0,0.01352]
[1760169054564,0.93476674,110420.0,110410.0,0.01352]
[1760169054761,1.33476674,110420.0,110410.0,0.01352]
[1760169055064,1.36159316,110420.0,110410.0,0.01352]
[1760169055468,1.76159316,110420.0,110410.0,0.01352]
[1760169055766,1.76259316,110420.0,110410.0,1e-07]
[1760169056260,0.4512808,110410.0,110400.0,0.01352]
[1760169056466,0.0904891,110400.0,110390.0,0.01352]
[1760169056667,1.79160956,110400.0,110390.0,0.01352]
[1760169057966,1.79160956,110400.0,110390.0,1e-07]
[1760169058568,1.39160956,110400.0,110390.0,1e-07]
[1760169059068,1.79160956,110400.0,110390.0,1e-07]
[1760169060166,1.39160956,110400.0,110390.0,1e-07]
[1760169060763,1.39160956,110400.0,110380.0,0.01352]
[1760169060764,0.0904973,110390.0,110380.0,0.01352]
[1760169061069,0.0905055,110380.0,110370.0,0.01352]
[1760169061273,0.0905137,110370.0,110360.0,0.01352]
[1760169061570,1.40814012,110370.0,110360.0,0.01352]
[1760169061769,1.3813137,110370.0,110360.0,0.01352]
[1760169061969,1.40814012,110370.0,110360.0,0.01352]
[1760169062766,0.9823137,110370.0,110360.0,0.01352]
[1760169063072,1.41014012,110370.0,110360.0,0.01352]
[1760169063373,1.81014012,110370.0,110360.0,0.01352]
[1760169064077,0.8928,110370.0,110360.0,0.01352]
[1760169064273,0.002,110370.0,110360.0,0.41352]
[1760169064472,0.002,110370.0,110360.0,0.5040419]
[1760169064666,0.7628,110370.0,110320.0,0.01352]
[1760169064872,0.0905547,110320.0,110310.0,0.01352]
[1760169065072,1.41818112,110320.0,110310.0,0.01352]
[1760169066171,0.0905629,110310.0,110300.0,0.01352]
[1760169066376,1.41818932,110310.0,110300.0,0.01352]
[1760169067973,0.9913629,110310.0,110300.0,0.41352]
[1760169068182,0.54,110310.0,110300.0,0.41352]
[1760169068378,0.6305629,110310.0,110300.0,0.41352]
[1760169068575,0.54,110310.0,110300.0,0.41352]
[1760169068770,0.54,110310.0,110300.0,0.8648911]
[1760169068771,0.541,110310.0,110300.0,0.8648911]
[1760169069075,0.002,110310.0,110300.0,1.29171752]
[1760169069274,0.002,110310.0,110300.0,0.8648911]
[1760169069275,0.001,110310.0,110300.0,0.8648911]
[1760169069572,0.001,110310.0,110300.0,0.4648911]
[1760169069768,0.87817472,110330.0,110320.0,0.01352]
[1760169069769,0.4513526,110330.0,110320.0,0.01352]
[1760169069972,0.9713526,110330.0,110320.0,0.01352]
[1760169070170,1.39817902,110330.0,110320.0,0.01352]
[1760169070774,0.9713526,110330.0,110320.0,0.01352]
[1760169071577,1.39917902,110330.0,110320.0,0.01352]
[1760169071774,1.40017902,110330.0,110320.0,0.01352]
[1760169072278,0.522,110330.0,110320.0,0.41352]
[1760169073378,0.522,110330.0,110320.0,0.5040747]
[1760169073585,0.522,110330.0,110320.0,0.8648747]
[1760169074682,0.6115465,110330.0,110320.0,0.01352]
[1760169074873,1.39917292,110330.0,110320.0,0.01352]
[1760169075080,1.39817292,110330.0,110320.0,0.01352]
[1760169075280,1.79817292,110330.0,110320.0,0.01352]
[1760169075980,0.9713465,110330.0,110320.0,0.01452]
[1760169076175,1.39817292,110330.0,110320.0,0.01452]
[1760169076374,1.39817292,110330.0,110320.0,0.01352]
[1760169076578,1.79817292,110330.0,110320.0,0.01352]
[1760169076786,1.82259492,110330.0,110320.0,0.01352]
[1760169076980,1.3957685,110330.0,110320.0,0.01352]
[1760169077184,1.79817292,110330.0,110320.0,0.01352]
[1760169077388,1.82261722,110330.0,110320.0,0.01352]
[1760169077777,1.42261722,110330.0,110320.0,0.01352]
[1760169079082,0.9957908,110330.0,110320.0,0.01352]
[1760169079281,1.42261722,110330.0,110320.0,0.01352]
[1760169079486,1.39817292,110330.0,110320.0,0.01352]
[1760169079781,1.82261234,110330.0,110320.0,0.01352]
[1760169080186,1.42261234,110330.0,110320.0,0.01352]
[1760169082484,1.42361234,110330.0,110320.0,0.01352]
[1760169083486,0.90623942,110330.0,110320.0,0.5250747]
[1760169083683,1.42362484,110330.0,110320.0,0.01352]
[1760169084589,0.99679842,110330.0,110320.0,0.01352]
[1760169084889,1.42362484,110330.0,110320.0,0.01352]
[1760169085288,0.99779842,110330.0,110320.0,0.01352]
[1760169085486,1.42362484,110330.0,110320.0,0.01352]
[1760169085684,1.42462484,110330.0,110320.0,0.01352]
[1760169085990,0.90725192,110330.0,110320.0,0.5250747]
[1760169086387,0.522,110330.0,110320.0,0.8648747]
[1760169086587,0.522,110330.0,110320.0,1.29170112]
[1760169086785,0.522,110330.0,110320.0,0.8648747]
[1760169087484,0.521,110330.0,110320.0,0.8648747]
[1760169087984,0.521,110330.0,110320.0,0.01352]
[1760169087985,0.8818,110330.0,110320.0,0.01352]
[1760169088284,0.8818,110330.0,110320.0,0.41452]